[Event "Early-Titled-Tuesday-Blitz-January-30-2024"]
[Site "Chess.com"]
[Date "2024.01.30"]
[Round "1"]
[White "Smile2005"]
[Black "Hovik_Hayrapetyan"]
[Result "1-0"]
[WhiteElo "2463"]
[BlackElo "2783"]
[TimeControl "180+1"]
[EndTime "8:07:13 PST"]
[Termination "Smile2005 won by resignation"]

1. e4 {[%clk 0:02:53.9]} 1... c5 {[%clk 0:02:58.7]} 2. Nf3 {[%clk 0:02:53.1]}
2... d6 {[%clk 0:02:58.3]} 3. d4 {[%clk 0:02:52.9]} 3... cxd4 {[%clk 0:02:59.2]}
4. Nxd4 {[%clk 0:02:53.2]} 4... Nf6 {[%clk 0:02:59]} 5. f3 {[%clk 0:02:53.4]}
5... e5 {[%clk 0:02:57.9]} 6. Nb3 {[%clk 0:02:53.2]} 6... d5 {[%clk 0:02:52.2]}
7. Bg5 {[%clk 0:02:52.1]} 7... d4 {[%clk 0:02:49.9]} 8. c3 {[%clk 0:02:50.3]}
8... Nc6 {[%clk 0:02:47.8]} 9. cxd4 {[%clk 0:02:48.1]} 9... exd4 {[%clk
0:02:42.1]} 10. Bb5 {[%clk 0:02:46.7]} 10... Bb4+ {[%clk 0:02:38.9]} 11. Bd2
{[%clk 0:02:45.6]} 11... Be7 {[%clk 0:02:20.2]} 12. O-O {[%clk 0:02:40.5]} 12...
O-O {[%clk 0:02:16.7]} 13. Kh1 {[%clk 0:02:40]} 13... a6 {[%clk 0:02:09.7]} 14.
Bxc6 {[%clk 0:02:39.2]} 14... bxc6 {[%clk 0:02:10.6]} 15. Ba5 {[%clk 0:02:39.3]}
15... Qe8 {[%clk 0:01:57.1]} 16. Qxd4 {[%clk 0:02:28]} 16... c5 {[%clk
0:01:50.1]} 17. Qf2 {[%clk 0:02:15.5]} 17... c4 {[%clk 0:01:23.7]} 18. Nd4
{[%clk 0:02:12.2]} 18... Bc5 {[%clk 0:01:22.7]} 19. Bc3 {[%clk 0:02:11.6]} 19...
Qd8 {[%clk 0:00:39.6]} 20. Na3 {[%clk 0:02:05.7]} 20... Bxa3 {[%clk 0:00:22.6]}
21. bxa3 {[%clk 0:02:06.3]} 21... Qc7 {[%clk 0:00:19.2]} 22. Rfd1 {[%clk
0:02:02.4]} 22... Bd7 {[%clk 0:00:17.5]} 23. g3 {[%clk 0:01:42.2]} 23... Rac8
{[%clk 0:00:16.9]} 24. Kg2 {[%clk 0:01:41.9]} 24... Rfe8 {[%clk 0:00:15.7]} 25.
Re1 {[%clk 0:01:34.8]} 25... h5 {[%clk 0:00:15.6]} 26. Rad1 {[%clk 0:01:34.5]}
26... Ba4 {[%clk 0:00:14.8]} 27. Rd2 {[%clk 0:01:33.4]} 27... Bd7 {[%clk
0:00:12.4]} 28. Rde2 {[%clk 0:01:28.9]} 28... Nh7 {[%clk 0:00:07.9]} 29. h4
{[%clk 0:01:25.5]} 29... Nf8 {[%clk 0:00:07.8]} 30. Qe3 {[%clk 0:01:22.3]} 30...
Ne6 {[%clk 0:00:03.2]} 31. Nf5 {[%clk 0:01:18.5]} 31... Qc5 {[%clk 0:00:02.4]}
32. Qxc5 {[%clk 0:01:15.6]} 32... Rxc5 {[%clk 0:00:03.3]} 33. Rd2 {[%clk
0:01:15.4]} 33... Bb5 {[%clk 0:00:02.3]} 34. Red1 {[%clk 0:01:13.4]} 34... Ba4
{[%clk 0:00:02.1]} 35. Rb1 {[%clk 0:01:08.6]} 35... g6 {[%clk 0:00:02.4]} 36.
Nd6 {[%clk 0:01:04.2]} 36... Rd8 {[%clk 0:00:01.5]} 37. Rb6 {[%clk 0:01:00.6]}
37... Bb5 {[%clk 0:00:01.8]} 38. Bf6 {[%clk 0:00:50.5]} 38... Rc6 {[%clk
0:00:02.3]} 39. Rxc6 {[%clk 0:00:49.7]} 39... Rd7 {[%clk 0:00:02.7]} 40. Rc8+
{[%clk 0:00:49.1]} 1-0

[Event "Early-Titled-Tuesday-Blitz-January-30-2024"]
[Site "Chess.com"]
[Date "2024.01.30"]
[Round "1"]
[White "Jojo_898"]
[Black "ShiroglanTalibov"]
[Result "0-1"]
[WhiteElo "2437"]
[BlackElo "2790"]
[TimeControl "180+1"]
[EndTime "8:07:13 PST"]
[Termination "ShiroglanTalibov won by resignation"]

1. e4 {[%clk 0:03:00.9]} 1... c5 {[%clk 0:02:59.8]} 2. Nf3 {[%clk 0:03:00.6]}
2... e6 {[%clk 0:03:00.5]} 3. c3 {[%clk 0:03:00.7]} 3... d5 {[%clk 0:02:52.4]}
4. exd5 {[%clk 0:02:58.7]} 4... Qxd5 {[%clk 0:02:53.3]} 5. d4 {[%clk 0:02:57.7]}
5... Nf6 {[%clk 0:02:52.7]} 6. Be2 {[%clk 0:02:57.5]} 6... Be7 {[%clk
0:02:52.5]} 7. Be3 {[%clk 0:02:56.9]} 7... Nbd7 {[%clk 0:02:47.8]} 8. O-O {[%clk
0:02:55.2]} 8... O-O {[%clk 0:02:47.3]} 9. c4 {[%clk 0:02:54.8]} 9... Qc6 {[%clk
0:02:36.8]} 10. Nc3 {[%clk 0:02:53.1]} 10... b6 {[%clk 0:02:36.9]} 11. d5 {[%clk
0:02:49.7]} 11... exd5 {[%clk 0:02:37.8]} 12. cxd5 {[%clk 0:02:49.8]} 12... Qc7
{[%clk 0:02:29.6]} 13. Qd2 {[%clk 0:02:36.7]} 13... a6 {[%clk 0:02:25.8]} 14.
Nh4 {[%clk 0:02:16.6]} 14... Ne5 {[%clk 0:02:21.8]} 15. Rfd1 {[%clk 0:02:11.5]}
15... Rd8 {[%clk 0:02:12.3]} 16. Bf4 {[%clk 0:01:56.5]} 16... Bd6 {[%clk
0:01:58.8]} 17. Bg3 {[%clk 0:01:44.9]} 17... Ng6 {[%clk 0:01:46.8]} 18. Nxg6
{[%clk 0:01:23.7]} 18... hxg6 {[%clk 0:01:47.7]} 19. Bxd6 {[%clk 0:01:19.3]}
19... Qxd6 {[%clk 0:01:48.6]} 20. Bf3 {[%clk 0:01:16.8]} 20... Bf5 {[%clk
0:01:47]} 21. Qg5 {[%clk 0:01:11]} 21... b5 {[%clk 0:01:39.1]} 22. Ne2 {[%clk
0:01:04.3]} 22... c4 {[%clk 0:01:25.7]} 23. Ng3 {[%clk 0:00:49.5]} 23... Bd3
{[%clk 0:01:23.6]} 24. h4 {[%clk 0:00:24]} 24... Nxd5 {[%clk 0:01:18.3]} 25. h5
{[%clk 0:00:24.3]} 25... Qf6 {[%clk 0:01:11.1]} 26. Qxf6 {[%clk 0:00:22.6]}
26... gxf6 {[%clk 0:01:12]} 27. Re1 {[%clk 0:00:20]} 27... Ra7 {[%clk 0:01:09]}
28. Bxd5 {[%clk 0:00:16.9]} 28... Rxd5 {[%clk 0:01:08.4]} 29. Re8+ {[%clk
0:00:16.3]} 29... Kg7 {[%clk 0:01:07.7]} 30. Rae1 {[%clk 0:00:17.2]} 30... gxh5
{[%clk 0:01:05.9]} 31. Rc8 {[%clk 0:00:16.3]} 31... Re5 {[%clk 0:00:59.9]} 32.
Rxe5 {[%clk 0:00:13.3]} 32... fxe5 {[%clk 0:01:00.8]} 33. Nxh5+ {[%clk
0:00:13.4]} 33... Kg6 {[%clk 0:01:00.7]} 34. Ng3 {[%clk 0:00:13.6]} 34... f5
{[%clk 0:01:01.2]} 35. Re8 {[%clk 0:00:13.4]} 35... f4 {[%clk 0:01:00.7]} 36.
Nf1 {[%clk 0:00:12.8]} 36... Kf6 {[%clk 0:00:56.4]} 37. g3 {[%clk 0:00:12.7]}
37... Rd7 {[%clk 0:00:45.6]} 38. gxf4 {[%clk 0:00:12.5]} 38... exf4 {[%clk
0:00:46.5]} 39. Rf8+ {[%clk 0:00:12.8]} 39... Rf7 {[%clk 0:00:42.9]} 40. Ra8
{[%clk 0:00:12.3]} 40... Rg7+ {[%clk 0:00:43]} 41. Kh2 {[%clk 0:00:09.6]} 41...
Bxf1 {[%clk 0:00:42.6]} 42. Rxa6+ {[%clk 0:00:10.5]} 42... Ke5 {[%clk
0:00:41.5]} 43. Rb6 {[%clk 0:00:11.1]} 43... c3 {[%clk 0:00:41.4]} 44. Rxb5+
{[%clk 0:00:11.1]} 44... Bxb5 {[%clk 0:00:40.4]} 0-1

[Event "Early-Titled-Tuesday-Blitz-January-30-2024"]
[Site "Chess.com"]
[Date "2024.01.30"]
[Round "1"]
[White "Andreikka"]
[Black "ProChessWICTH"]
[Result "1/2-1/2"]
[WhiteElo "2984"]
[BlackElo "2537"]
[TimeControl "180+1"]
[EndTime "8:07:18 PST"]
[Termination "Game drawn - insufficient material"]

1. Nf3 {[%clk 0:02:59]} 1... Nf6 {[%clk 0:02:58.5]} 2. b3 {[%clk 0:02:57.8]}
2... g6 {[%clk 0:02:58.6]} 3. Bb2 {[%clk 0:02:58.3]} 3... Bg7 {[%clk 0:02:58.1]}
4. g3 {[%clk 0:02:58.9]} 4... O-O {[%clk 0:02:58.1]} 5. Bg2 {[%clk 0:02:59.5]}
5... d5 {[%clk 0:02:58.6]} 6. c4 {[%clk 0:02:59]} 6... c6 {[%clk 0:02:58.7]} 7.
d3 {[%clk 0:02:59.1]} 7... Nbd7 {[%clk 0:02:57.1]} 8. O-O {[%clk 0:02:58.2]}
8... Re8 {[%clk 0:02:56.7]} 9. Nc3 {[%clk 0:02:56]} 9... e5 {[%clk 0:02:52.2]}
10. cxd5 {[%clk 0:02:52.5]} 10... cxd5 {[%clk 0:02:53.1]} 11. Rc1 {[%clk
0:02:52.8]} 11... a6 {[%clk 0:02:31.5]} 12. Na4 {[%clk 0:02:32.7]} 12... d4
{[%clk 0:01:22.3]} 13. Nd2 {[%clk 0:02:28]} 13... Rb8 {[%clk 0:01:17.7]} 14. Ba3
{[%clk 0:02:25.4]} 14... b5 {[%clk 0:01:12.8]} 15. Nc5 {[%clk 0:02:23.1]} 15...
Nxc5 {[%clk 0:01:10.1]} 16. Bxc5 {[%clk 0:02:24]} 16... Bb7 {[%clk 0:01:05.7]}
17. Ne4 {[%clk 0:02:24.2]} 17... Nxe4 {[%clk 0:00:58.8]} 18. Bxe4 {[%clk
0:02:25.1]} 18... Bxe4 {[%clk 0:00:53.7]} 19. dxe4 {[%clk 0:02:26]} 19... Rc8
{[%clk 0:00:46.8]} 20. Qd3 {[%clk 0:02:20.9]} 20... Re6 {[%clk 0:00:39.9]} 21.
b4 {[%clk 0:02:11.9]} 21... Rec6 {[%clk 0:00:35.4]} 22. e3 {[%clk 0:02:09.7]}
22... Bf8 {[%clk 0:00:25.2]} 23. exd4 {[%clk 0:01:58.6]} 23... Bxc5 {[%clk
0:00:20.6]} 24. bxc5 {[%clk 0:01:56.3]} 24... Qxd4 {[%clk 0:00:20.6]} 25. Qxd4
{[%clk 0:01:17.9]} 25... exd4 {[%clk 0:00:21.5]} 26. Rfd1 {[%clk 0:01:16]} 26...
Rxc5 {[%clk 0:00:22]} 27. Rxc5 {[%clk 0:01:16.1]} 27... Rxc5 {[%clk 0:00:22.9]}
28. Rxd4 {[%clk 0:01:16.6]} 28... a5 {[%clk 0:00:22.4]} 29. a3 {[%clk
0:01:09.7]} 29... Rc3 {[%clk 0:00:18.7]} 30. Rd5 {[%clk 0:01:10]} 30... Rb3
{[%clk 0:00:19.3]} 31. h4 {[%clk 0:01:08.1]} 31... a4 {[%clk 0:00:17.1]} 32. Kg2
{[%clk 0:01:07.7]} 32... h5 {[%clk 0:00:17.2]} 33. f3 {[%clk 0:00:59]} 33... Kf8
{[%clk 0:00:17.8]} 34. g4 {[%clk 0:00:59.4]} 34... hxg4 {[%clk 0:00:16.5]} 35.
fxg4 {[%clk 0:01:00.3]} 35... Kg7 {[%clk 0:00:16.9]} 36. Kf2 {[%clk 0:00:51.4]}
36... Rxa3 {[%clk 0:00:12.6]} 37. Rxb5 {[%clk 0:00:51.3]} 37... Rh3 {[%clk
0:00:12.8]} 38. h5 {[%clk 0:00:50.2]} 38... gxh5 {[%clk 0:00:13.7]} 39. gxh5
{[%clk 0:00:48.3]} 39... Kh6 {[%clk 0:00:13.5]} 40. Ra5 {[%clk 0:00:47.5]} 40...
a3 {[%clk 0:00:10.6]} 41. Kg2 {[%clk 0:00:47.9]} 41... Rxh5 {[%clk 0:00:08.2]}
42. Rxa3 {[%clk 0:00:46.4]} 42... Re5 {[%clk 0:00:08.8]} 43. Kf3 {[%clk
0:00:45.7]} 43... f5 {[%clk 0:00:08.3]} 44. Kf4 {[%clk 0:00:45.8]} 44... Rxe4+
{[%clk 0:00:08.8]} 45. Kxf5 {[%clk 0:00:46.5]} 45... Re1 {[%clk 0:00:08]} 46.
Ra6+ {[%clk 0:00:43.7]} 46... Kg7 {[%clk 0:00:07]} 47. Re6 {[%clk 0:00:44.2]}
47... Rxe6 {[%clk 0:00:06.6]} 48. Kxe6 {[%clk 0:00:44.7]} 1/2-1/2

[Event "Early-Titled-Tuesday-Blitz-January-30-2024"]
[Site "Chess.com"]
[Date "2024.01.30"]
[Round "1"]
[White "SergioMoralesG"]
[Black "Iball95"]
[Result "0-1"]
[WhiteElo "2431"]
[BlackElo "2780"]
[TimeControl "180+1"]
[EndTime "8:07:19 PST"]
[Termination "Iball95 won on time"]

1. d4 {[%clk 0:03:00.9]} 1... d5 {[%clk 0:02:59.1]} 2. c4 {[%clk 0:03:01.3]}
2... e6 {[%clk 0:02:59.6]} 3. Nf3 {[%clk 0:03:01.8]} 3... Nf6 {[%clk 0:02:59.3]}
4. Nc3 {[%clk 0:03:02.2]} 4... c5 {[%clk 0:02:59.4]} 5. e3 {[%clk 0:03:01.6]}
5... Nc6 {[%clk 0:02:59.1]} 6. cxd5 {[%clk 0:03:01.6]} 6... exd5 {[%clk
0:02:58.8]} 7. Bb5 {[%clk 0:03:02.1]} 7... cxd4 {[%clk 0:02:57.6]} 8. Nxd4
{[%clk 0:02:58.9]} 8... Bd7 {[%clk 0:02:58.1]} 9. O-O {[%clk 0:02:50.7]} 9...
Bd6 {[%clk 0:02:57.7]} 10. h3 {[%clk 0:02:45]} 10... O-O {[%clk 0:02:56.9]} 11.
b3 {[%clk 0:02:40.4]} 11... Re8 {[%clk 0:02:47]} 12. Bb2 {[%clk 0:02:39.6]}
12... Rc8 {[%clk 0:02:40]} 13. Rc1 {[%clk 0:02:36.1]} 13... Qe7 {[%clk
0:02:37.7]} 14. Nce2 {[%clk 0:02:25.5]} 14... Ne4 {[%clk 0:02:29.8]} 15. Nxc6
{[%clk 0:02:22.3]} 15... bxc6 {[%clk 0:02:30.7]} 16. Ba6 {[%clk 0:02:18.4]}
16... Rb8 {[%clk 0:02:27.9]} 17. Qd4 {[%clk 0:02:14.5]} 17... Qg5 {[%clk
0:02:14.2]} 18. Nf4 {[%clk 0:02:06.1]} 18... Be5 {[%clk 0:02:00.1]} 19. Qxa7
{[%clk 0:02:04.9]} 19... Bxb2 {[%clk 0:01:59.3]} 20. Qxd7 {[%clk 0:02:04.5]}
20... Bxc1 {[%clk 0:01:59.9]} 21. Rxc1 {[%clk 0:02:01.9]} 21... Qe5 {[%clk
0:01:21.6]} 22. Qxc6 {[%clk 0:01:49.5]} 22... Nxf2 {[%clk 0:01:21.5]} 23. Qc3
{[%clk 0:01:31.1]} 23... Qxc3 {[%clk 0:01:14.1]} 24. Rxc3 {[%clk 0:01:32]} 24...
Nd1 {[%clk 0:01:13.7]} 25. Rd3 {[%clk 0:01:18.7]} 25... Nxe3 {[%clk 0:01:13.2]}
26. Kf2 {[%clk 0:01:15.5]} 26... Nc2 {[%clk 0:00:39.7]} 27. Nxd5 {[%clk
0:01:08.7]} 27... Kf8 {[%clk 0:00:39.9]} 28. Bc4 {[%clk 0:00:56]} 28... Na3
{[%clk 0:00:39.6]} 29. Ba6 {[%clk 0:00:40.1]} 29... Re6 {[%clk 0:00:39]} 30. Nc7
{[%clk 0:00:14]} 30... Re7 {[%clk 0:00:38]} 31. Nd5 {[%clk 0:00:09.8]} 31... Ra7
{[%clk 0:00:37.6]} 32. Bc4 {[%clk 0:00:04]} 32... Nxc4 {[%clk 0:00:38.1]} 33.
bxc4 {[%clk 0:00:04.9]} 33... Rxa2+ {[%clk 0:00:38]} 34. Kf3 {[%clk 0:00:04.6]}
34... Rc2 {[%clk 0:00:34.9]} 35. Rd4 {[%clk 0:00:03.9]} 35... h5 {[%clk
0:00:30]} 36. Kf4 {[%clk 0:00:02.3]} 36... Rxg2 {[%clk 0:00:27.9]} 37. Ke5
{[%clk 0:00:01.6]} 37... Rc2 {[%clk 0:00:22.7]} 0-1

[Event "Early-Titled-Tuesday-Blitz-January-30-2024"]
[Site "Chess.com"]
[Date "2024.01.30"]
[Round "1"]
[White "Kostya0705"]
[Black "Grischuk"]
[Result "1-0"]
[WhiteElo "2558"]
[BlackElo "3077"]
[TimeControl "180+1"]
[EndTime "8:07:23 PST"]
[Termination "Kostya0705 won on time"]

1. e4 {[%clk 0:03:00.9]} 1... e5 {[%clk 0:02:57.7]} 2. Nf3 {[%clk 0:03:00.9]}
2... Nc6 {[%clk 0:02:57.3]} 3. Bc4 {[%clk 0:03:00.1]} 3... Bc5 {[%clk
0:02:56.3]} 4. c3 {[%clk 0:02:57.7]} 4... Nf6 {[%clk 0:02:55.9]} 5. d4 {[%clk
0:02:57]} 5... exd4 {[%clk 0:02:56.8]} 6. b4 {[%clk 0:02:57.1]} 6... Bb6 {[%clk
0:02:45.9]} 7. e5 {[%clk 0:02:56.6]} 7... Ne4 {[%clk 0:02:45.9]} 8. Bd5 {[%clk
0:02:56.3]} 8... Nxc3 {[%clk 0:02:45.9]} 9. Nxc3 {[%clk 0:02:56.9]} 9... dxc3
{[%clk 0:02:46.8]} 10. Bg5 {[%clk 0:02:57.3]} 10... Ne7 {[%clk 0:02:47.3]} 11.
O-O {[%clk 0:02:57.2]} 11... h6 {[%clk 0:02:47.2]} 12. Bh4 {[%clk 0:02:57.5]}
12... c2 {[%clk 0:02:47.2]} 13. Qd3 {[%clk 0:02:54.4]} 13... g5 {[%clk
0:02:44.5]} 14. Nxg5 {[%clk 0:02:53.8]} 14... hxg5 {[%clk 0:01:38.7]} 15. Bxg5
{[%clk 0:02:54.7]} 15... d6 {[%clk 0:01:04.5]} 16. Qb3 {[%clk 0:02:20.4]} 16...
Rf8 {[%clk 0:00:35.8]} 17. Rae1 {[%clk 0:01:18.5]} 17... dxe5 {[%clk 0:00:24.8]}
18. Rxe5 {[%clk 0:01:17.6]} 18... f6 {[%clk 0:00:25.1]} 19. Qf3 {[%clk
0:01:08.1]} 19... Qd6 {[%clk 0:00:24.8]} 20. Qh5+ {[%clk 0:00:59.9]} 20... Kd8
{[%clk 0:00:23.3]} 21. Qh6 {[%clk 0:00:48.2]} 21... Nxd5 {[%clk 0:00:14.3]} 22.
Rxd5 {[%clk 0:00:43.8]} 22... Qxd5 {[%clk 0:00:15.2]} 23. Qxf8+ {[%clk
0:00:43.8]} 23... Kd7 {[%clk 0:00:15.9]} 24. Re1 {[%clk 0:00:27.3]} 24... Kc6
{[%clk 0:00:10.7]} 25. Qxf6+ {[%clk 0:00:26.6]} 25... Kb5 {[%clk 0:00:07.3]} 26.
Re5 {[%clk 0:00:25.1]} 26... c6 {[%clk 0:00:05.8]} 27. Rxd5+ {[%clk 0:00:22.6]}
27... cxd5 {[%clk 0:00:06.7]} 28. Qc3 {[%clk 0:00:22.5]} 28... Bf5 {[%clk
0:00:06.5]} 29. Qb3 {[%clk 0:00:14.9]} 29... Be4 {[%clk 0:00:04.4]} 30. Kf1
{[%clk 0:00:11]} 30... Rc8 {[%clk 0:00:01.6]} 31. a4+ {[%clk 0:00:11.3]} 31...
Kc6 {[%clk 0:00:01.4]} 32. f3 {[%clk 0:00:11.7]} 32... Bh7 {[%clk 0:00:01.1]}
33. Ke2 {[%clk 0:00:09.1]} 1-0

[Event "Early-Titled-Tuesday-Blitz-January-30-2024"]
[Site "Chess.com"]
[Date "2024.01.30"]
[Round "1"]
[White "Muslim_player_05"]
[Black "rasmussvane"]
[Result "0-1"]
[WhiteElo "2520"]
[BlackElo "2974"]
[TimeControl "180+1"]
[EndTime "8:07:24 PST"]
[Termination "rasmussvane won on time"]

1. d4 {[%clk 0:03:00.9]} 1... Nf6 {[%clk 0:02:59.2]} 2. c4 {[%clk 0:03:01.3]}
2... e6 {[%clk 0:02:58.7]} 3. Nc3 {[%clk 0:03:01.4]} 3... Bb4 {[%clk 0:02:56.6]}
4. e3 {[%clk 0:03:01.4]} 4... O-O {[%clk 0:02:55.7]} 5. Bd3 {[%clk 0:03:01.5]}
5... d5 {[%clk 0:02:51.6]} 6. Nf3 {[%clk 0:02:58.7]} 6... dxc4 {[%clk 0:02:30]}
7. Bxc4 {[%clk 0:02:59.6]} 7... c5 {[%clk 0:02:30.4]} 8. O-O {[%clk 0:02:54]}
8... Nc6 {[%clk 0:02:30]} 9. a3 {[%clk 0:02:51.2]} 9... Ba5 {[%clk 0:02:29.7]}
10. Bd3 {[%clk 0:02:49.6]} 10... h6 {[%clk 0:02:27.4]} 11. Rb1 {[%clk
0:02:22.2]} 11... Qe7 {[%clk 0:02:20.5]} 12. Qe2 {[%clk 0:01:45]} 12... Rd8
{[%clk 0:02:18.6]} 13. Rd1 {[%clk 0:01:45.3]} 13... a6 {[%clk 0:02:07.5]} 14.
dxc5 {[%clk 0:01:28]} 14... Bxc3 {[%clk 0:02:05.1]} 15. bxc3 {[%clk 0:01:28.9]}
15... Qxc5 {[%clk 0:01:33.8]} 16. Bb2 {[%clk 0:01:25]} 16... e5 {[%clk
0:01:26.2]} 17. Bc2 {[%clk 0:00:44.4]} 17... Be6 {[%clk 0:01:23.9]} 18. a4
{[%clk 0:00:35.7]} 18... Na5 {[%clk 0:01:12.9]} 19. Ba1 {[%clk 0:00:23.3]} 19...
Bc4 {[%clk 0:00:40.2]} 20. Qe1 {[%clk 0:00:21.2]} 20... b6 {[%clk 0:00:40.1]}
21. Rxd8+ {[%clk 0:00:18.8]} 21... Rxd8 {[%clk 0:00:41]} 22. h3 {[%clk
0:00:17.2]} 22... Rd7 {[%clk 0:00:30.4]} 23. Nd2 {[%clk 0:00:16.8]} 23... Bd3
{[%clk 0:00:30.2]} 24. Bxd3 {[%clk 0:00:15.4]} 24... Rxd3 {[%clk 0:00:31.1]} 25.
Rb4 {[%clk 0:00:14.5]} 25... Nc6 {[%clk 0:00:28.7]} 26. Rb1 {[%clk 0:00:08.7]}
26... Na5 {[%clk 0:00:26.9]} 27. Rb4 {[%clk 0:00:08.2]} 27... Qd6 {[%clk
0:00:27.3]} 28. Nf1 {[%clk 0:00:04.3]} 28... Rd1 {[%clk 0:00:24.3]} 29. Qe2
{[%clk 0:00:04.7]} 29... Rxa1 {[%clk 0:00:24.2]} 30. Qxa6 {[%clk 0:00:05]} 30...
Nd5 {[%clk 0:00:16.8]} 31. Rb5 {[%clk 0:00:01.1]} 31... Kh7 {[%clk 0:00:11]} 32.
Rxa5 {[%clk 0:00:01.3]} 32... Nxc3 {[%clk 0:00:08.1]} 0-1

[Event "Early-Titled-Tuesday-Blitz-January-30-2024"]
[Site "Chess.com"]
[Date "2024.01.30"]
[Round "1"]
[White "NelsonLinda"]
[Black "yuriydovzik"]
[Result "1-0"]
[WhiteElo "2592"]
[BlackElo "2220"]
[TimeControl "180+1"]
[EndTime "8:07:24 PST"]
[Termination "NelsonLinda won on time"]

1. b3 {[%clk 0:03:00.9]} 1... a5 {[%clk 0:02:58]} 2. a3 {[%clk 0:03:00.7]} 2...
b6 {[%clk 0:02:53.7]} 3. Bb2 {[%clk 0:03:00.4]} 3... Bb7 {[%clk 0:02:52.7]} 4.
e3 {[%clk 0:03:00.7]} 4... d6 {[%clk 0:02:44.3]} 5. d4 {[%clk 0:02:56.8]} 5...
Nd7 {[%clk 0:02:40.3]} 6. Nf3 {[%clk 0:02:53]} 6... e6 {[%clk 0:02:37.9]} 7. Bb5
{[%clk 0:02:46.4]} 7... Nf6 {[%clk 0:02:20.8]} 8. O-O {[%clk 0:02:44.7]} 8...
Be7 {[%clk 0:02:19.7]} 9. Nbd2 {[%clk 0:02:41.4]} 9... O-O {[%clk 0:02:17.9]}
10. Re1 {[%clk 0:02:41.6]} 10... c6 {[%clk 0:02:10.2]} 11. Bd3 {[%clk
0:02:34.5]} 11... c5 {[%clk 0:02:04.4]} 12. c4 {[%clk 0:02:06.3]} 12... Qc7
{[%clk 0:01:57.7]} 13. Rc1 {[%clk 0:02:04.5]} 13... Bc6 {[%clk 0:01:50]} 14. e4
{[%clk 0:02:00.1]} 14... e5 {[%clk 0:01:43.2]} 15. dxe5 {[%clk 0:01:53.7]} 15...
dxe5 {[%clk 0:01:36.4]} 16. Nb1 {[%clk 0:01:54]} 16... Rfe8 {[%clk 0:01:32.8]}
17. Nc3 {[%clk 0:01:53.9]} 17... Bd6 {[%clk 0:01:23.2]} 18. Nd5 {[%clk
0:01:53.6]} 18... Bxd5 {[%clk 0:01:15.5]} 19. cxd5 {[%clk 0:01:53.7]} 19... Nh5
{[%clk 0:01:04.6]} 20. Bb5 {[%clk 0:01:44.1]} 20... Re7 {[%clk 0:00:59.2]} 21.
Nh4 {[%clk 0:01:32]} 21... g6 {[%clk 0:00:48.3]} 22. Rc2 {[%clk 0:01:16]} 22...
Ng7 {[%clk 0:00:34.6]} 23. Bc1 {[%clk 0:01:12.8]} 23... f6 {[%clk 0:00:32.2]}
24. Nf3 {[%clk 0:01:07.1]} 24... g5 {[%clk 0:00:27.5]} 25. Nd2 {[%clk
0:01:05.1]} 25... Nf8 {[%clk 0:00:26]} 26. Nc4 {[%clk 0:00:28.4]} 26... Ng6
{[%clk 0:00:25.1]} 27. Be3 {[%clk 0:00:22.6]} 27... Nf4 {[%clk 0:00:21.8]} 28.
g3 {[%clk 0:00:22.2]} 28... Ng6 {[%clk 0:00:20.2]} 29. b4 {[%clk 0:00:17]} 29...
axb4 {[%clk 0:00:18.6]} 30. a4 {[%clk 0:00:17.3]} 30... Qd8 {[%clk 0:00:14]} 31.
Qb1 {[%clk 0:00:13.8]} 31... Rea7 {[%clk 0:00:10.9]} 32. Qb3 {[%clk 0:00:13.9]}
32... h5 {[%clk 0:00:07.2]} 33. Ra1 {[%clk 0:00:12.2]} 33... h4 {[%clk
0:00:05.2]} 34. Bc6 {[%clk 0:00:11.8]} 1-0